fUSD/lending_fUSD_20260529
["ID","MTS","AMOUNT","RATE_DAILY","PERIOD"]
[423250922,1779995441000,-100000.95126837,0.00029,30]
[423250924,1779995441000,-2500.0,0.00029,2]
[423250928,1779995441000,-728.87,0.00029,2]
[423250923,1779995441000,-4804.94,0.00029,2]
[423250926,1779995441000,-10000.0,0.00029,2]
[423250927,1779995441000,-695.99,0.00029,2]
[423250861,1779995441000,-189.97464483,0.00028509,7]
[423250904,1779995441000,-500.0,0.00028999,120]
[423250895,1779995441000,-150.0,0.00028855,2]
[423250929,1779995441000,-10000.0,0.00029,2]
[423250897,1779995441000,-150.0,0.00028897,2]
[423250868,1779995441000,-2763.28,0.00028533,7]
[423250869,1779995441000,-933.7,0.00028533,7]
[423250872,1779995441000,-274.66620844,0.00028542,30]
[423250876,1779995441000,-2763.29,0.00028565,7]
[423250879,1779995441000,-572.69,0.0002864,7]
[423250871,1779995441000,-157.5704953,0.00028535,7]
[423250870,1779995441000,-2598.5,0.00028533,7]
[423250873,1779995441000,-500.0,0.00028562,60]
[423250900,1779995441000,-357.0,0.00028969,2]
[423250877,1779995441000,-35495.2147018,0.00028629,2]
[423250880,1779995441000,-1154.16,0.00028641,7]
[423250878,1779995441000,-317.6573765,0.00028629,2]
[423250874,1779995441000,-933.71,0.00028565,7]
[423250892,1779995441000,-525.0,0.00028851,2]
[423250875,1779995441000,-2598.55,0.00028565,7]
[423250881,1779995441000,-1063.83,0.00028767,30]
[423250882,1779995441000,-195.84811666,0.00028767,30]
[423250896,1779995441000,-150.0,0.00028855,2]
[423250894,1779995441000,-150.0,0.00028855,2]
[423250891,1779995441000,-1272.0,0.00028851,2]
[423250888,1779995441000,-3549.0,0.00028851,2]
[423250890,1779995441000,-1356.0,0.00028851,2]
[423250898,1779995441000,-300.0,0.000289,10]
[423250889,1779995441000,-928.0,0.00028851,2]
[423250883,1779995441000,-278.60711303,0.00028767,30]
[423250886,1779995441000,-999.14,0.000288,7]
[423250893,1779995441000,-1225.0,0.00028851,2]
[423250885,1779995441000,-500.0,0.00028768,7]
[423250884,1779995441000,-219.05273215,0.00028767,30]
[423250887,1779995441000,-1650.62,0.000288,7]
[423250971,1779995442000,-171.9083622,0.00029623,2]
[423250973,1779995442000,-1650.62,0.000297,7]
[423250972,1779995442000,-999.14,0.000297,7]
[423250970,1779995442000,-4009.94302868,0.000296,2]
[423250969,1779995442000,-4009.94302868,0.000296,2]
[423250965,1779995442000,-1000.0,0.00029574,2]
[423250968,1779995442000,-4009.94302869,0.000296,2]
[423250963,1779995442000,-1000.0,0.00029574,2]
[423250966,1779995442000,-1000.0,0.00029574,2]
[423250961,1779995442000,-8140.09,0.00029502,2]
[423250959,1779995442000,-206.17282169,0.00029499,30]
[423250967,1779995442000,-1000.0,0.00029574,2]
[423250975,1779995442000,-397.25089247,0.00029701,7]
[423250989,1779995442000,-151.0,0.00029826,30]
[423250981,1779995442000,-353.0,0.00029783,30]
[423250978,1779995442000,-156.0,0.00029783,30]
[423250977,1779995442000,-484.82527943,0.0002976,2]
[423250982,1779995442000,-206.33346112,0.00029814,2]
[423250979,1779995442000,-153.0,0.00029783,30]
[423250976,1779995442000,-1117.33,0.00029722,7]
[423250985,1779995442000,-731.0,0.00029826,30]
[423250986,1779995442000,-159.0,0.00029826,30]
[423250995,1779995442000,-308.82903886,0.00029842,7]
[423250988,1779995442000,-849.0,0.00029826,30]
[423250983,1779995442000,-1147.72,0.00029815,2]
[423250993,1779995442000,-319.55989169,0.00029842,7]
[423250990,1779995442000,-152.0,0.00029826,30]
[423250964,1779995442000,-1000.0,0.00029574,2]
[423250980,1779995442000,-1539.0,0.00029783,30]
[423250962,1779995442000,-582.0,0.0002952,6]
[423250945,1779995442000,-1395.76,0.00029,2]
[423250955,1779995442000,-500.0,0.00029384,60]
[423250987,1779995442000,-232.0,0.00029826,30]
[423250930,1779995442000,-718.48,0.00029,2]
[423250931,1779995442000,-687.23,0.00029,2]
[423250933,1779995442000,-620.81,0.00029,2]
[423250937,1779995442000,-532.63443254,0.00029,2]
[423250943,1779995442000,-2382.29352052,0.00029,2]
[423250944,1779995442000,-385.43096065,0.00029,2]
[423250935,1779995442000,-1197.60431588,0.00029,2]
[423250940,1779995442000,-303.0,0.00029,2]
[423250934,1779995442000,-1989.0,0.00029,7]
[423250941,1779995442000,-1012.96,0.00029,2]
[423250932,1779995442000,-650.2,0.00029,2]
[423250938,1779995442000,-189.0,0.00029,2]
[423250960,1779995442000,-309.98906472,0.000295,30]
[423250942,1779995442000,-743.72456515,0.00029,2]
[423250936,1779995442000,-500.0,0.00029,2]
[423250949,1779995442000,-402.77,0.000291,2]
[423250947,1779995442000,-583.01099143,0.00029046,2]
[423250948,1779995442000,-200.0,0.00029047,2]
[423250946,1779995442000,-254.19,0.00029007,120]
[423250951,1779995442000,-500.0,0.0002911,60]
[423250957,1779995442000,-3637.0,0.00029485,2]
[423250950,1779995442000,-200.0,0.000291,2]
[423250956,1779995442000,-1415.216,0.00029485,2]
[423250958,1779995442000,-206.33346112,0.00029499,30]
[423250953,1779995442000,-152.0,0.00029338,4]
[423250954,1779995442000,-260.30521726,0.00029384,60]
[423250952,1779995442000,-230.7115644,0.000293,2]
[423250939,1779995442000,-200.0,0.00029,2]
[423250984,1779995442000,-157.0,0.00029826,30]
[423250974,1779995442000,-1000.0,0.000297,7]
[423250994,1779995442000,-323.36331017,0.00029842,7]
[423251033,1779995442000,-313.90821485,0.0002985,2]
[423251022,1779995442000,-372.86985278,0.00029844,7]
[423251030,1779995442000,-189.27906923,0.00029844,7]
[423251031,1779995442000,-329.751795,0.00029844,7]
[423251032,1779995442000,-175.57190094,0.0002985,2]
[423251028,1779995442000,-328.86436038,0.00029844,7]
[423251034,1779995442000,-364.19568326,0.00029851,7]
[423251036,1779995442000,-321.30164907,0.00029851,7]
[423251046,1779995442000,-171.0,0.0003,120]
[423251047,1779995442000,-410.30370657,0.0003,2]
[423251035,1779995442000,-318.2236665,0.00029851,7]
[423251039,1779995442000,-343.27435986,0.00029851,7]
[423251038,1779995442000,-318.24891579,0.00029851,7]
[423251037,1779995442000,-349.54164512,0.00029851,7]
[423251041,1779995442000,-8297.90799467,0.000299,2]
[423251040,1779995442000,-315.1409906,0.00029871,7]
[423251042,1779995442000,-243.42541284,0.00029907,2]
[423251043,1779995442000,-166.84303589,0.00029918,2]
[423251045,1779995442000,-396.20254651,0.00029924,7]
[423251048,1779995442000,-200.0,0.0003,120]
[423251051,1779995442000,-650.0,0.0003,2]
[423251052,1779995442000,-151.0,0.0003,2]
[423251050,1779995442000,-10000.0,0.0003,10]
[423251053,1779995442000,-151.0,0.0003,2]
[423251054,1779995442000,-151.0,0.0003,2]
[423251055,1779995442000,-151.0,0.0003,2]
[423251056,1779995442000,-151.0,0.0003,2]
[423251049,1779995442000,-312.03903775,0.0003,5]
[423250992,1779995442000,-172.42413812,0.0002983,30]
[423251024,1779995442000,-316.47058291,0.00029844,7]
[423251029,1779995442000,-379.94928966,0.00029844,7]
[423251044,1779995442000,-312.29015349,0.00029924,7]
[423251023,1779995442000,-380.40423147,0.00029844,7]
[423251027,1779995442000,-322.34793713,0.00029844,7]
[423250991,1779995442000,-686.0,0.00029826,30]
[423250996,1779995442000,-441.98103482,0.00029842,7]
[423250999,1779995442000,-411.1744486,0.00029842,7]
[423251000,1779995442000,-170.3351693,0.00029842,7]
[423251004,1779995442000,-381.72640938,0.00029842,7]
[423251007,1779995442000,-151.64428204,0.00029842,7]
[423250997,1779995442000,-323.71393774,0.00029842,7]
[423251006,1779995442000,-330.01095618,0.00029842,7]
[423251002,1779995442000,-344.36255024,0.00029842,7]
[423251005,1779995442000,-309.17146652,0.00029842,7]
[423251001,1779995442000,-209.88623498,0.00029842,7]
[423251003,1779995442000,-338.59836832,0.00029842,7]
[423251009,1779995442000,-343.16164933,0.00029844,7]
[423250998,1779995442000,-217.65725537,0.00029842,7]
[423251012,1779995442000,-327.03731652,0.00029844,7]
[423251021,1779995442000,-200.98815651,0.00029844,7]
[423251014,1779995442000,-150.6776617,0.00029844,7]
[423251017,1779995442000,-321.20132083,0.00029844,7]
[423251016,1779995442000,-328.72463794,0.00029844,7]
[423251015,1779995442000,-365.84482479,0.00029844,7]
[423251020,1779995442000,-377.11553838,0.00029844,7]
[423251018,1779995442000,-359.84708433,0.00029844,7]
[423251011,1779995442000,-357.25198188,0.00029844,7]
[423251057,1779995442000,-151.0,0.0003,2]
[423251013,1779995442000,-399.26446478,0.00029844,7]
[423251010,1779995442000,-325.43584195,0.00029844,7]
[423251008,1779995442000,-416.80369293,0.00029844,7]
[423251019,1779995442000,-199.86501995,0.00029844,7]
[423251025,1779995442000,-367.53388198,0.00029844,7]
[423251102,1779995443000,-171.9083622,0.00030275,2]
[423251099,1779995443000,-922.95,0.000302,2]
[423251105,1779995443000,-999.14,0.000304,7]
[423251104,1779995443000,-150.0,0.00030341,2]
[423251100,1779995443000,-192.749123,0.000302,2]
[423251101,1779995443000,-1587.0,0.00030239,2]
[423251103,1779995443000,-330.0,0.00030275,15]
[423251106,1779995443000,-1650.62,0.000304,7]
[423251108,1779995443000,-583.01099143,0.0003051,2]
[423251109,1779995443000,-582.0,0.00030629,7]
[423251107,1779995443000,-199.24,0.00030411,120]
[423251113,1779995443000,-335.45830584,0.00030729,7]
[423251115,1779995443000,-242.62402082,0.00030729,7]
[423251094,1779995443000,-1206.12952987,0.00030137,2]
[423251114,1779995443000,-233.59360457,0.00030729,7]
[423251084,1779995443000,-223.59856185,0.00030137,7]
[423251059,1779995443000,-151.0,0.0003,2]
[423251095,1779995443000,-500.0,0.00030137,7]
[423251111,1779995443000,-152.35135759,0.00030729,7]
[423251058,1779995443000,-151.0,0.0003,2]
[423251060,1779995443000,-151.0,0.0003,2]
[423251062,1779995443000,-151.0,0.0003,2]
[423251073,1779995443000,-151.65,0.00030137,31]
[423251072,1779995443000,-151.0,0.00030134,7]
[423251061,1779995443000,-151.0,0.0003,2]
[423251075,1779995443000,-994.12,0.00030137,2]
[423251067,1779995443000,-200.0,0.0003,2]
[423251070,1779995443000,-582.0,0.00030075,7]
[423251071,1779995443000,-527.53113738,0.00030114,2]
[423251090,1779995443000,-200.0,0.00030137,40]
[423251078,1779995443000,-200.0,0.00030137,2]
[423251088,1779995443000,-447.1971237,0.00030137,7]
[423251097,1779995443000,-695.28,0.00030196,120]
[423251092,1779995443000,-1063.83,0.00030137,30]
[423251110,1779995443000,-150.68485378,0.00030729,7]
[423251081,1779995443000,-1003.83,0.00030137,2]
[423251118,1779995443000,-463.24355828,0.00030732,7]
[423251134,1779995443000,-319.80631177,0.00030733,7]
[423251149,1779995443000,-184.97,0.00027733,2]
[423251138,1779995443000,-514.74247399,0.00030734,7]
[423251137,1779995443000,-625.2055394,0.00030734,7]
[423251136,1779995443000,-362.8849427,0.00030733,7]
[423251140,1779995443000,-488.15376293,0.00030734,7]
[423251139,1779995443000,-535.87797282,0.00030734,7]
[423251143,1779995443000,-598.89669716,0.00030734,7]
[423251144,1779995443000,-293.6817654,0.00030734,7]
[423251145,1779995443000,-301.3553234,0.00030734,7]
[423251146,1779995443000,-548.76723719,0.00030734,7]
[423251147,1779995443000,-47.9301726,0.00030734,7]
[423251150,1779995443000,-184.97,0.00027763,7]
[423251151,1779995443000,-184.97,0.00027794,30]
[423251112,1779995443000,-162.13632365,0.00030729,7]
[423251135,1779995443000,-500.0,0.00030733,120]
[423251132,1779995443000,-323.48059183,0.00030733,7]
[423251148,1779995443000,-728.98748731,0.00027091,2]
[423251130,1779995443000,-495.01643428,0.00030732,7]
[423251116,1779995443000,-479.33983754,0.00030732,7]
[423251120,1779995443000,-485.57090661,0.00030732,7]
[423251119,1779995443000,-662.97155223,0.00030732,7]
[423251133,1779995443000,-396.72591605,0.00030733,7]
[423251123,1779995443000,-616.76167291,0.00030732,7]
[423251122,1779995443000,-291.9513102,0.00030732,7]
[423251124,1779995443000,-340.67033859,0.00030732,7]
[423251129,1779995443000,-463.75719978,0.00030732,7]
[423251121,1779995443000,-435.31451073,0.00030732,7]
[423251126,1779995443000,-516.54382536,0.00030732,7]
[423251117,1779995443000,-485.04496525,0.00030732,7]
[423251127,1779995443000,-507.89755248,0.00030732,7]
[423251125,1779995443000,-419.77246996,0.00030732,7]
[423251141,1779995443000,-283.08645735,0.00030734,7]
[423251142,1779995443000,-207.46951743,0.00030734,7]
[423251131,1779995443000,-303.28856409,0.00030732,7]
[423251128,1779995443000,-572.58961407,0.00030732,7]
[423251161,1779995444000,-195.5089838,0.00030734,7]
[423251160,1779995444000,-571.0,0.00030732,30]
[423251157,1779995444000,-184.97,0.00027977,30]
[423251156,1779995444000,-184.97,0.00027946,7]
[423251155,1779995444000,-184.97,0.00027916,2]
[423251153,1779995444000,-184.97,0.00027855,7]
[423251152,1779995444000,-184.97,0.00027824,2]
[423251154,1779995444000,-184.97,0.00027885,30]
[423251163,1779995444000,-295.60902653,0.00030734,7]
[423251158,1779995444000,-184.97,0.00028007,2]
[423251166,1779995444000,-401.97631303,0.00030734,7]
[423251164,1779995444000,-493.08695692,0.00030734,7]
[423251167,1779995444000,-539.77062649,0.00030734,7]
[423251162,1779995444000,-299.14508985,0.00030734,7]
[423251159,1779995444000,-184.97,0.00028038,7]
[423251165,1779995444000,-481.80198125,0.00030734,7]
[423251169,1779995444000,-365.9527336,0.00030734,7]
[423251170,1779995444000,-85.50480647,0.00030734,7]
[423251168,1779995444000,-33.77730631,0.00030734,7]
[423251180,1779995446000,-484.319,0.00018894,2]
[423251182,1779995446000,-277.45,0.00024886,7]
[423251183,1779995446000,-277.45,0.00025115,30]
[423251181,1779995446000,-277.45,0.00024658,2]
[423251184,1779995446000,-277.45,0.00025343,2]
[423251186,1779995446000,-277.45,0.000258,30]
[423251188,1779995446000,-184.97,0.00028099,2]
[423251191,1779995446000,-94.33198813,0.00030734,7]
[423251185,1779995446000,-277.45,0.00025572,7]
[423251190,1779995446000,-1943.96663281,0.00029595,2]
[423251187,1779995446000,-184.97,0.00028068,30]
[423251189,1779995446000,-185.02,0.0002813,7]
[423251194,1779995507000,-335.02406557,0.00018894,2]
[423251196,1779995964000,-500.0,0.00014999,2]
[423251198,1779995964000,-270.98924715,0.00014999,2]
[423251197,1779995964000,-152.52931938,0.00014999,2]
[423251201,1779995964000,-20525.30863714,0.00015,2]
[423251200,1779995964000,-3119.68279033,0.00014999,2]
[423251199,1779995964000,-431.490006,0.00014999,2]
[423251203,1779995965000,-25000.0,0.00015,2]
[423251202,1779995965000,-25000.0,0.00015,2]
[423251204,1779995998000,-335.02406557,0.00015,2]
[423251208,1779996136000,10000.0,0.000107,2]
[423251207,1779996136000,10000.0,0.000107,2]
[423251205,1779996136000,4155.05671508,0.000107,2]
[423251206,1779996136000,10000.0,0.000107,2]
[423251209,1779996137000,10000.0,0.000107,2]
[423251212,1779996137000,10000.0,0.000107,2]
[423251210,1779996137000,10000.0,0.000107,2]
[423251213,1779996137000,590.34136188,0.000107,2]
[423251211,1779996137000,10000.0,0.000107,2]
[423251226,1779996342000,-150.00000001,0.00013488,2]
[423251228,1779996342000,-150.0,0.00013787,2]
[423251227,1779996342000,-166.66,0.00013699,2]
[423251224,1779996342000,-150.0,0.00013488,2]
[423251225,1779996342000,-150.0,0.00013488,2]
[423251222,1779996342000,-150.0,0.00013488,2]
[423251223,1779996342000,-150.0,0.00013488,2]
[423251214,1779996342000,-152.0,0.0001288,2]
[423251219,1779996342000,-3753.44890571,0.00013,5]
[423251218,1779996342000,-152.0,0.00012888,2]
[423251220,1779996342000,-255.0,0.00013016,2]
[423251217,1779996342000,-152.0,0.00012884,2]
[423251216,1779996342000,-152.0,0.00012884,2]
[423251229,1779996342000,-166.66,0.00013943,2]
[423251215,1779996342000,-152.0,0.0001288,2]
[423251221,1779996342000,-150.0,0.00013488,2]
[423251232,1779996342000,-150.0,0.00014087,2]
[423251230,1779996342000,-150.0,0.00013987,2]
[423251234,1779996342000,-250.0,0.000143,2]
[423251247,1779996342000,-2250.14055606,0.000149,2]
[423251250,1779996342000,-222.70808907,0.000149,2]
[423251249,1779996342000,-490.2216892,0.000149,2]
[423251246,1779996342000,-2826.124,0.000149,2]
[423251243,1779996342000,-2591.02178873,0.000149,2]
[423251242,1779996342000,-996.0,0.00014899,2]
[423251245,1779996342000,-175.378,0.000149,2]
[423251248,1779996342000,-7022.32237788,0.000149,2]
[423251244,1779996342000,-10000.0,0.000149,2]
[423251239,1779996342000,-150.0,0.00014687,2]
[423251240,1779996342000,-995.881059,0.00014824,2]
[423251238,1779996342000,-166.66,0.00014675,2]
[423251236,1779996342000,-166.66,0.00014431,2]
[423251235,1779996342000,-150.0,0.00014387,2]
[423251237,1779996342000,-150.0,0.00014487,2]
[423251233,1779996342000,-166.66,0.00014187,2]
[423251241,1779996342000,-150.0,0.00014899,2]
[423251231,1779996342000,-250.0,0.00014,2]
[423251252,1779996435000,-152.0,0.00012884,2]
[423251253,1779996435000,-855.85217941,0.00014568,2]
[423251269,1779996634000,-2500.0,0.000149,2]
[423251270,1779996634000,-1795.41965142,0.000149,2]
[423251267,1779996634000,-231.40422016,0.000149,2]
[423251264,1779996634000,-2725.83749109,0.000149,2]
[423251266,1779996634000,-5000.0,0.000149,2]
[423251268,1779996634000,-71389.33169141,0.000149,2]
[423251263,1779996634000,-150.0,0.00014899,2]
[423251265,1779996634000,-7762.11467553,0.000149,2]
[423251272,1779996634000,-53820.40259985,0.000149,2]
[423251262,1779996634000,-189.69247301,0.00014899,2]
[423251260,1779996634000,-500.0,0.00014899,2]
[423251261,1779996634000,-557.43808601,0.00014899,2]
[423251259,1779996634000,-182.91848011,0.00014899,2]
[423251258,1779996634000,-201.74402378,0.000148,2]
[423251256,1779996634000,-181.62,0.00013657,2]
[423251257,1779996634000,-531.77970701,0.00014568,2]
[423251255,1779996634000,-1339.05,0.00013657,2]
[423251271,1779996634000,-2383.66946245,0.000149,2]
[423251274,1779996634000,-6554.40958512,0.000149,3]
[423251295,1779996634000,-297.9,0.00014999,7]
[423251273,1779996634000,-381.56298026,0.000149,2]
[423251284,1779996634000,-312.31106448,0.0001499,2]
[423251312,1779996634000,-7689.85496367,0.00015,2]
[423251303,1779996634000,-444.77399999,0.00015,2]
[423251301,1779996634000,-440.79,0.00015,2]
[423251310,1779996634000,-56188.53031161,0.00015,2]
[423251307,1779996634000,-319.32572032,0.00015,2]
[423251297,1779996634000,-15119.94210205,0.00015,2]
[423251305,1779996634000,-2025.91625886,0.00015,2]
[423251315,1779996634000,-115156.81198911,0.00015,2]
[423251280,1779996634000,-150.00000001,0.00014986,2]
[423251282,1779996634000,-150.0,0.00014986,2]
[423251293,1779996634000,-200.0,0.00014999,2]
[423251276,1779996634000,-9563.09736322,0.000149,2]
[423251291,1779996634000,-813.34355745,0.0001499,2]
[423251289,1779996634000,-813.34355745,0.0001499,2]
[423251287,1779996634000,-501.03249297,0.0001499,2]
[423251275,1779996634000,-18445.59041488,0.000149,3]
[423251278,1779996634000,-166.66,0.00014919,2]
[423251449,1779996638000,-770400.70865166,0.00015,2]
[423251448,1779996638000,-669.24090961,0.00015,2]
[423251480,1779996640000,-2057.6100992,0.00015,2]
[423251481,1779996640000,-2972255.93733354,0.00015,2]
[423251491,1779996643000,-23303.0356947,0.00014891,3]
[423251492,1779996643000,-980612.18688863,0.00015,2]
[423251490,1779996643000,-1696.9643053,0.00014891,3]
[423251517,1779996646000,-377.48,0.00015,2]
[423251543,1779996647000,-70619.49778526,0.00015,2]
[423251579,1779996953000,-669.24090961,0.00013059,2]
[423251683,1779997246000,-153.29,0.00025526,30]
[423251682,1779997246000,-1729.49718832,0.00015,30]
[423251684,1779997246000,-150.0,0.000256,30]
[423251685,1779997246000,-153.29,0.00026829,30]
[423251691,1779997246000,-468.8,0.0002755,30]
[423251688,1779997246000,-468.92,0.0002755,30]
[423251687,1779997246000,-1520.4,0.0002755,30]
[423251689,1779997246000,-1430.24,0.0002755,30]
[423251690,1779997246000,-1518.95,0.0002755,30]
[423251686,1779997246000,-150.0,0.00027397,30]
[423251708,1779997247000,-1430.24,0.00028033,30]
[423251709,1779997247000,-1518.95,0.00028033,30]
[423251707,1779997247000,-241.76357986,0.00028033,30]
[423251706,1779997247000,-468.92,0.00028033,30]
[423251704,1779997247000,-160.59,0.00028033,30]
[423251705,1779997247000,-1520.4,0.00028033,30]
[423251702,1779997247000,-152.0,0.00027913,30]
[423251703,1779997247000,-7755.42835792,0.00028,60]
[423251701,1779997247000,-152.0,0.00027913,30]
[423251698,1779997247000,-152.0,0.00027792,30]
[423251699,1779997247000,-152.0,0.00027792,30]
[423251697,1779997247000,-152.0,0.00027784,30]
[423251696,1779997247000,-152.0,0.00027784,30]
[423251694,1779997247000,-160.59,0.00027743,30]
[423251695,1779997247000,-152.0,0.00027784,30]
[423251692,1779997247000,-1429.73,0.0002755,30]
[423251693,1779997247000,-159.98906472,0.000277,30]
[423251710,1779997247000,-468.8,0.00028033,30]
[423251700,1779997247000,-152.0,0.00027801,30]
[423251713,1779997247000,-153.29,0.00028131,30]
[423251723,1779997247000,-500.0,0.0002909,60]
[423251711,1779997247000,-1429.73,0.00028033,30]
[423251732,1779997247000,-151.0,0.00029795,30]
[423251712,1779997247000,-385.43096065,0.00028082,120]
[423251733,1779997247000,-289.0,0.00029795,30]
[423251730,1779997247000,-181.0,0.00029795,30]
[423251728,1779997247000,-351.0,0.00029785,30]
[423251727,1779997247000,-1695.0,0.00029785,30]
[423251729,1779997247000,-152.0,0.00029793,120]
[423251726,1779997247000,-170.0,0.00029785,30]
[423251725,1779997247000,-168.24391264,0.00029784,30]
[423251724,1779997247000,-212.07,0.00029564,120]
[423251731,1779997247000,-865.0,0.00029795,30]
[423251714,1779997247000,-163.83,0.00028767,30]
[423251720,1779997247000,-4639.29607733,0.00029,120]
[423251721,1779997247000,-500.0,0.0002909,60]
[423251719,1779997247000,-100000.95126837,0.00029,30]
[423251716,1779997247000,-240.16528684,0.00028767,30]
[423251717,1779997247000,-150.0,0.00028767,30]
[423251715,1779997247000,-208.19942651,0.00028767,30]
[423251718,1779997247000,-175.0,0.00028767,30]
[423251722,1779997247000,-260.30521726,0.0002909,60]
[423251744,1779997248000,-187.01121328,0.00030137,30]
[423251746,1779997248000,-184.01455475,0.00030137,30]
[423251748,1779997248000,-169.05548584,0.00030137,30]
[423251752,1779997248000,-184.51402284,0.00030733,30]
[423251749,1779997248000,-168.28255899,0.00030137,30]
[423251750,1779997248000,-167.89454849,0.00030214,30]
[423251745,1779997248000,-755.23878671,0.00030137,30]
[423251747,1779997248000,-194.00391629,0.00030137,30]
[423251751,1779997248000,-199.24,0.00030411,120]
[423251736,1779997248000,-195.0,0.00029795,30]
[423251740,1779997248000,-500.0,0.0002987,120]
[423251741,1779997248000,-500.0,0.00029912,60]
[423251738,1779997248000,-500.0,0.0002987,120]
[423251739,1779997248000,-500.0,0.0002987,120]
[423251737,1779997248000,-769.0,0.00029795,30]
[423251735,1779997248000,-151.0,0.00029795,30]
[423251734,1779997248000,-1046.0,0.00029795,30]
[423251743,1779997248000,-200.0,0.00030137,40]
[423251753,1779997248000,-500.0,0.00030734,60]
[423251742,1779997248000,-151.66,0.00030137,31]
[423251754,1779997248000,-170.0,0.00030785,30]
[423251755,1779997248000,-1695.0,0.00030785,30]
[423251772,1779997248000,-2456.31,0.00031507,30]
[423251773,1779997248000,-500.0,0.00031556,60]
[423251771,1779997248000,-2193.82,0.000315,120]
[423251770,1779997248000,-167.89454849,0.00031346,30]
[423251769,1779997248000,-500.0,0.00030841,30]
[423251766,1779997248000,-500.0,0.00030841,120]
[423251765,1779997248000,-500.0,0.00030841,120]
[423251767,1779997248000,-500.0,0.00030841,120]
[423251768,1779997248000,-500.0,0.00030841,120]
[423251763,1779997248000,-195.0,0.00030795,30]
[423251762,1779997248000,-151.0,0.00030795,30]
[423251761,1779997248000,-1046.0,0.00030795,30]
[423251760,1779997248000,-289.0,0.00030795,30]
[423251759,1779997248000,-151.0,0.00030795,30]
[423251757,1779997248000,-181.0,0.00030795,30]
[423251758,1779997248000,-865.0,0.00030795,30]
[423251764,1779997248000,-769.0,0.00030795,30]
[423251756,1779997248000,-351.0,0.00030785,30]
[423251786,1779997249000,-174.84515845,0.00032,120]
[423251789,1779997249000,-170.59116884,0.00032,120]
[423251788,1779997249000,-342.57568305,0.00032,120]
[423251793,1779997249000,-240.05184697,0.00032,120]
[423251790,1779997249000,-165.54796298,0.00032,120]
[423251792,1779997249000,-164.14305202,0.00032,120]
[423251787,1779997249000,-167.57546934,0.00032,120]
[423251791,1779997249000,-314.528,0.00032,120]
[423251785,1779997249000,-500.0,0.00031949,120]
[423251775,1779997249000,-1695.0,0.00031785,30]
[423251784,1779997249000,-769.0,0.00031795,30]
[423251781,1779997249000,-1046.0,0.00031795,30]
[423251783,1779997249000,-195.0,0.00031795,30]
[423251779,1779997249000,-151.0,0.00031795,30]
[423251780,1779997249000,-289.0,0.00031795,30]
[423251777,1779997249000,-181.0,0.00031795,30]
[423251776,1779997249000,-351.0,0.00031785,30]
[423251795,1779997249000,-301.19770126,0.00032,120]
[423251774,1779997249000,-170.0,0.00031785,30]
[423251782,1779997249000,-151.0,0.00031795,30]
[423251794,1779997249000,-168.03431567,0.00032,120]
[423251778,1779997249000,-865.0,0.00031795,30]
[423251796,1779997249000,-180.0,0.00032,120]
[423251816,1779997249000,-927.81,0.00032877,30]
[423251797,1779997249000,-170.59116884,0.00032,120]
[423251813,1779997249000,-195.0,0.00032795,30]
[423251814,1779997249000,-769.0,0.00032795,30]
[423251815,1779997249000,-1000.0,0.00032877,30]
[423251812,1779997249000,-151.0,0.00032795,30]